[Event "Swedish Chess Championship 2019: Minior-SM"]
[Site "Stiga Sports Arena, Arenatorget 1, Eskilstuna, Sweden, Sweden"]
[Date "2019.07.08"]
[Round "1.1"]
[White "Lindholm, Marcus"]
[Black "Falkevall, Axel"]
[Result "0-1"]
[TimeControl "90 minutes for 40 moves + 30 minutes for the rest of the game + 30 seconds per move from move one"]
[WhiteFideId "1743473"]
[BlackFideId "1735560"]
[WhiteElo "1359"]
[BlackElo "2067"]

1. e4 {[%clk 01:30:51]} {[%emt 00:00:09]} e6 {[%clk 01:30:56]} {[%emt
00:00:05]} 2. d4 {[%clk 01:31:12]} {[%emt 00:00:09]} d5 {[%clk 01:31:21]}
{[%emt 00:00:05]} 3. e5 {[%clk 01:30:29]} {[%emt 00:01:13]} c5 {[%clk
01:31:29]} {[%emt 00:00:22]} 4. c3 {[%clk 01:30:24]} {[%emt 00:00:34]} Nc6
{[%clk 01:31:56]} {[%emt 00:00:04]} 5. Nf3 {[%clk 01:30:20]} {[%emt 00:00:34]}
Bd7 {[%clk 01:32:21]} {[%emt 00:00:05]} 6. Bb5 {[%clk 01:23:07]} {[%emt
00:07:44]} Nxe5 {[%clk 01:32:43]} {[%emt 00:00:08]} 7. Nxe5 {[%clk 01:18:34]}
{[%emt 00:05:02]} Bxb5 {[%clk 01:32:44]} {[%emt 00:00:29]} 8. Qf3 {[%clk
01:15:23]} {[%emt 00:03:41]} Nf6 {[%clk 01:31:22]} {[%emt 00:01:51]} 9. Bg5
{[%clk 01:13:47]} {[%emt 00:02:07]} Be7 {[%clk 01:30:08]} {[%emt 00:01:44]} 10.
Na3 {[%clk 01:07:48]} {[%emt 00:06:29]} Bd7 {[%clk 01:25:14]} {[%emt 00:05:24]}
11. dxc5 {[%clk 01:04:32]} {[%emt 00:03:46]} O-O {[%clk 01:17:01]} {[%emt
00:08:43]} 12. b4 {[%clk 00:58:06]} {[%emt 00:06:57]} Ne4 {[%clk 01:02:53]}
{[%emt 00:14:37]} 13. Bxe7 {[%clk 00:55:44]} {[%emt 00:02:53]} Qxe7 {[%clk
01:03:06]} {[%emt 00:00:17]} 14. Nxd7 {[%clk 00:50:43]} {[%emt 00:05:31]} Qxd7
{[%clk 01:03:31]} {[%emt 00:00:06]} 15. Qd3 {[%clk 00:49:33]} {[%emt 00:01:38]}
Qe7 {[%clk 00:55:40]} {[%emt 00:08:22]} 16. O-O {[%clk 00:46:18]} {[%emt
00:03:45]} a5 {[%clk 00:53:38]} {[%emt 00:02:33]} 17. Nc2 {[%clk 00:43:45]}
{[%emt 00:03:02]} Rfc8 {[%clk 00:44:44]} {[%emt 00:09:24]} 18. a3 {[%clk
00:38:49]} {[%emt 00:05:26]} Qc7 {[%clk 00:30:13]} {[%emt 00:15:02]} 19. Nd4
{[%clk 00:32:14]} {[%emt 00:07:05]} b6 {[%clk 00:24:54]} {[%emt 00:05:50]} 20.
cxb6 {[%clk 00:31:07]} {[%emt 00:01:37]} Qxb6 {[%clk 00:25:05]} {[%emt
00:00:19]} 21. Rac1 {[%clk 00:28:36]} {[%emt 00:03:00]} axb4 {[%clk 00:22:42]}
{[%emt 00:02:54]} 22. cxb4 {[%clk 00:27:58]} {[%emt 00:01:08]} Rxc1 {[%clk
00:22:53]} {[%emt 00:00:20]} 23. Rxc1 {[%clk 00:27:56]} {[%emt 00:00:32]} e5
{[%clk 00:23:11]} {[%emt 00:00:12]} 24. Qc2 {[%clk 00:27:16]} {[%emt 00:01:10]}
exd4 {[%clk 00:23:28]} {[%emt 00:00:12]} 25. Qc8+ {[%clk 00:27:21]} {[%emt
00:00:25]} Qd8 {[%clk 00:23:54]} {[%emt 00:00:05]} 0-1

[Event "Swedish Chess Championship 2019: Minior-SM"]
[Site "Stiga Sports Arena, Arenatorget 1, Eskilstuna, Sweden, Sweden"]
[Date "2019.07.08"]
[Round "1.2"]
[White "Grahn, Vidar"]
[Black "Agelin, Robin"]
[Result "1-0"]
[TimeControl "90 minutes for 40 moves + 30 minutes for the rest of the game + 30 seconds per move from move one"]
[WhiteFideId "1744780"]
[BlackFideId "1744623"]
[WhiteElo "1980"]
[BlackElo "1333"]

1. e4 {[%clk 01:30:56]} {[%emt 00:00:03]} e6 {[%clk 01:30:52]} {[%emt
00:00:10]} 2. d4 {[%clk 01:31:22]} {[%emt 00:00:04]} d5 {[%clk 01:31:16]}
{[%emt 00:00:06]} 3. Nc3 {[%clk 01:31:46]} {[%emt 00:00:05]} Bb4 {[%clk
01:31:37]} {[%emt 00:00:09]} 4. e5 {[%clk 01:32:06]} {[%emt 00:00:09]} c5
{[%clk 01:31:52]} {[%emt 00:00:16]} 5. a3 {[%clk 01:32:30]} {[%emt 00:00:06]}
Bxc3+ {[%clk 01:31:16]} {[%emt 00:01:06]} 6. bxc3 {[%clk 01:32:55]} {[%emt
00:00:05]} Qa5 {[%clk 01:30:59]} {[%emt 00:00:47]} 7. Bd2 {[%clk 01:33:15]}
{[%emt 00:00:08]} cxd4 {[%clk 01:30:32]} {[%emt 00:00:58]} 8. cxd4 {[%clk
01:32:51]} {[%emt 00:00:54]} Qa4 {[%clk 01:30:22]} {[%emt 00:00:40]} 9. Qg4
{[%clk 01:17:58]} {[%emt 00:15:22]} g6 {[%clk 01:29:22]} {[%emt 00:01:31]} 10.
Nf3 {[%clk 01:16:48]} {[%emt 00:01:40]} Nc6 {[%clk 01:27:29]} {[%emt 00:02:23]}
11. Bd3 {[%clk 01:15:58]} {[%emt 00:01:19]} Bd7 {[%clk 01:24:13]} {[%emt
00:03:47]} 12. O-O {[%clk 01:14:33]} {[%emt 00:01:54]} a6 {[%clk 01:21:35]}
{[%emt 00:03:09]} 13. Bg5 {[%clk 01:11:09]} {[%emt 00:03:54]} Nge7 {[%clk
01:18:35]} {[%emt 00:03:31]} 14. Bf6 {[%clk 01:11:00]} {[%emt 00:00:38]} h5
{[%clk 01:17:56]} {[%emt 00:01:09]} 15. Qg5 {[%clk 01:08:56]} {[%emt 00:03:03]}
Rh7 {[%clk 01:18:28]} {[%emt 00:00:29]} 16. Rfb1 {[%clk 01:06:50]} {[%emt
00:02:36]} Bc8 {[%clk 01:17:28]} {[%emt 00:01:30]} 17. Rb3 {[%clk 00:59:56]}
{[%emt 00:07:24]} Rb8 {[%clk 01:16:03]} {[%emt 00:01:56]} 18. Rab1 {[%clk
00:58:44]} {[%emt 00:01:42]} b5 {[%clk 01:15:03]} {[%emt 00:01:30]} 19. c3
{[%clk 00:58:10]} {[%emt 00:01:05]} Nf5 {[%clk 01:07:00]} {[%emt 00:08:33]} 20.
Bxf5 {[%clk 00:49:45]} {[%emt 00:08:55]} exf5 {[%clk 01:07:11]} {[%emt
00:00:19]} 21. Qc1 {[%clk 00:49:36]} {[%emt 00:00:38]} h4 {[%clk 01:01:58]}
{[%emt 00:05:44]} 22. Bxh4 {[%clk 00:47:14]} {[%emt 00:02:53]} Ne7 {[%clk
00:58:33]} {[%emt 00:03:55]} 23. Qg5 {[%clk 00:46:37]} {[%emt 00:01:06]} Nc6
{[%clk 00:57:04]} {[%emt 00:02:01]} 24. Qf6 {[%clk 00:45:00]} {[%emt 00:02:05]}
Be6 {[%clk 00:57:09]} {[%emt 00:00:26]} 25. Ng5 {[%clk 00:44:18]} {[%emt
00:01:11]} Rxh4 {[%clk 00:56:56]} {[%emt 00:00:44]} 26. Nxe6 {[%clk 00:44:33]}
{[%emt 00:00:16]} Re4 {[%clk 00:54:40]} {[%emt 00:02:45]} 27. Nc7+ {[%clk
00:42:42]} {[%emt 00:02:21]} Kf8 {[%clk 00:52:26]} {[%emt 00:02:45]} 28. Nxd5
{[%clk 00:42:54]} {[%emt 00:00:17]} Kg8 {[%clk 00:51:44]} {[%emt 00:01:12]} 29.
f3 {[%clk 00:43:02]} {[%emt 00:00:22]} Re1+ {[%clk 00:51:26]} {[%emt 00:00:48]}
30. Rxe1 {[%clk 00:43:16]} {[%emt 00:00:15]} Qxb3 {[%clk 00:51:49]} {[%emt
00:00:08]} 31. Qxc6 {[%clk 00:43:41]} {[%emt 00:00:05]} Qxa3 {[%clk 00:49:38]}
{[%emt 00:02:41]} 32. Ne7+ {[%clk 00:43:00]} {[%emt 00:01:09]} Qxe7 {[%clk
00:49:58]} {[%emt 00:00:12]} 33. Qxa6 {[%clk 00:42:48]} {[%emt 00:00:41]} Qc7
{[%clk 00:49:28]} {[%emt 00:01:00]} 34. Qd6 {[%clk 00:41:27]} {[%emt 00:01:51]}
Qc8 {[%clk 00:48:17]} {[%emt 00:01:41]} 35. d5 {[%clk 00:39:46]} {[%emt
00:02:11]} Qe8 {[%clk 00:47:30]} {[%emt 00:01:17]} 36. Qb4 {[%clk 00:35:35]}
{[%emt 00:04:40]} Rc8 {[%clk 00:44:01]} {[%emt 00:04:00]} 37. d6 {[%clk
00:34:55]} {[%emt 00:01:10]} Qd7 {[%clk 00:43:17]} {[%emt 00:01:14]} 38. Rb1
{[%clk 00:34:35]} {[%emt 00:00:50]} Rb8 {[%clk 00:42:40]} {[%emt 00:01:08]} 39.
Qc5 {[%clk 00:34:32]} {[%emt 00:00:32]} Rb7 {[%clk 00:37:27]} {[%emt 00:05:44]}
40. Qd5 {[%clk 00:33:49]} {[%emt 00:01:12]} Kf8 {[%clk 00:36:35]} {[%emt
00:01:22]} 41. c4 {[%clk 00:32:57]} {[%emt 00:01:22]} b4 {[%clk 00:35:55]}
{[%emt 00:01:10]} 42. c5 {[%clk 00:32:47]} {[%emt 00:00:39]} Rb8 {[%clk
00:36:05]} {[%emt 00:00:20]} 43. c6 {[%clk 00:32:54]} {[%emt 00:00:23]} Qa7+
{[%clk 00:30:03]} {[%emt 00:06:33]} 44. Kh1 {[%clk 00:32:37]} {[%emt 00:00:46]}
Rc8 {[%clk 00:29:26]} {[%emt 00:01:08]} 45. d7 {[%clk 00:32:46]} {[%emt
00:00:21]} Rd8 {[%clk 00:29:28]} {[%emt 00:00:28]} 46. Qd6+ {[%clk 00:33:10]}
{[%emt 00:00:05]} 1-0

[Event "Swedish Chess Championship 2019: Minior-SM"]
[Site "Stiga Sports Arena, Arenatorget 1, Eskilstuna, Sweden, Sweden"]
[Date "2019.07.08"]
[Round "1.3"]
[White "Schriever-Abeln, Marius"]
[Black "Strom-Engdahl, Alexander"]
[Result "0-1"]
[TimeControl "90 minutes for 40 moves + 30 minutes for the rest of the game + 30 seconds per move from move one"]
[WhiteFideId "1752650"]
[BlackFideId "1741586"]
[WhiteElo "1332"]
[BlackElo "1866"]

1. d4 {[%clk 01:30:58]} {[%emt 00:00:01]} Nf6 {[%clk 01:30:29]} {[%emt
00:00:31]} 2. c4 {[%clk 01:31:13]} {[%emt 00:00:15]} e6 {[%clk 01:30:52]}
{[%emt 00:00:07]} 3. Nf3 {[%clk 01:31:29]} {[%emt 00:00:14]} b6 {[%clk
01:30:40]} {[%emt 00:00:43]} 4. g3 {[%clk 01:30:26]} {[%emt 00:01:33]} Bb7
{[%clk 01:29:42]} {[%emt 00:01:27]} 5. Bg2 {[%clk 01:30:41]} {[%emt 00:00:15]}
Bb4+ {[%clk 01:26:35]} {[%emt 00:03:38]} 6. Bd2 {[%clk 01:29:01]} {[%emt
00:02:10]} Bxd2+ {[%clk 01:25:49]} {[%emt 00:01:16]} 7. Nbxd2 {[%clk 01:29:19]}
{[%emt 00:00:12]} O-O {[%clk 01:26:04]} {[%emt 00:00:15]} 8. O-O {[%clk
01:28:15]} {[%emt 00:01:34]} d6 {[%clk 01:26:18]} {[%emt 00:00:15]} 9. Qc2
{[%clk 01:27:11]} {[%emt 00:01:35]} Nbd7 {[%clk 01:23:48]} {[%emt 00:03:00]} 10.
e3 {[%clk 01:23:47]} {[%emt 00:03:54]} Qe7 {[%clk 01:20:01]} {[%emt 00:04:16]}
11. b4 {[%clk 01:19:08]} {[%emt 00:05:09]} c5 {[%clk 01:15:09]} {[%emt
00:05:22]} 12. dxc5 {[%clk 01:11:43]} {[%emt 00:07:55]} bxc5 {[%clk 01:13:18]}
{[%emt 00:02:22]} 13. b5 {[%clk 01:10:11]} {[%emt 00:02:02]} d5 {[%clk
00:58:38]} {[%emt 00:15:10]} 14. Nb3 {[%clk 01:02:50]} {[%emt 00:07:52]} dxc4
{[%clk 00:55:49]} {[%emt 00:03:18]} 15. Qxc4 {[%clk 01:02:55]} {[%emt
00:00:25]} a6 {[%clk 00:55:13]} {[%emt 00:01:06]} 16. a4 {[%clk 00:52:46]}
{[%emt 00:10:39]} Rfc8 {[%clk 00:51:23]} {[%emt 00:04:20]} 17. Rfc1 {[%clk
00:50:02]} {[%emt 00:03:14]} Bd5 {[%clk 00:39:09]} {[%emt 00:12:44]} 18. Qc3
{[%clk 00:46:22]} {[%emt 00:04:10]} axb5 {[%clk 00:37:48]} {[%emt 00:01:51]} 19.
axb5 {[%clk 00:39:52]} {[%emt 00:07:00]} Rab8 {[%clk 00:37:16]} {[%emt
00:01:02]} 20. Ra5 {[%clk 00:39:20]} {[%emt 00:01:02]} Ne4 {[%clk 00:36:23]}
{[%emt 00:01:22]} 21. Qc2 {[%clk 00:38:36]} {[%emt 00:01:13]} Nd6 {[%clk
00:36:13]} {[%emt 00:00:41]} 22. Bf1 {[%clk 00:25:38]} {[%emt 00:13:28]} Bxf3
{[%clk 00:36:20]} {[%emt 00:00:23]} 0-1

[Event "Swedish Chess Championship 2019: Minior-SM"]
[Site "Stiga Sports Arena, Arenatorget 1, Eskilstuna, Sweden, Sweden"]
[Date "2019.07.08"]
[Round "1.4"]
[White "Morell, Ludvig"]
[Black "Fridman, Arvid"]
[Result "1-0"]
[TimeControl "90 minutes for 40 moves + 30 minutes for the rest of the game + 30 seconds per move from move one"]
[WhiteFideId "1736779"]
[BlackFideId "1758632"]
[WhiteElo "1744"]
[BlackElo "1326"]

1. e4 {[%clk 01:30:52]} {[%emt 00:00:07]} e5 {[%clk 01:30:51]} {[%emt
00:00:09]} 2. Nf3 {[%clk 01:31:19]} {[%emt 00:00:03]} Nf6 {[%clk 01:31:12]}
{[%emt 00:00:09]} 3. Nxe5 {[%clk 01:31:00]} {[%emt 00:00:48]} d6 {[%clk
01:31:29]} {[%emt 00:00:13]} 4. Nf3 {[%clk 01:31:24]} {[%emt 00:00:06]} Nxe4
{[%clk 01:31:55]} {[%emt 00:00:05]} 5. Nc3 {[%clk 01:31:29]} {[%emt 00:00:24]}
Nxc3 {[%clk 01:31:44]} {[%emt 00:00:41]} 6. dxc3 {[%clk 01:31:51]} {[%emt
00:00:08]} d5 {[%clk 01:30:25]} {[%emt 00:01:50]} 7. Be3 {[%clk 01:30:55]}
{[%emt 00:01:25]} Be7 {[%clk 01:27:22]} {[%emt 00:03:34]} 8. Qd2 {[%clk
01:29:43]} {[%emt 00:01:40]} Be6 {[%clk 01:23:34]} {[%emt 00:04:19]} 9. O-O-O
{[%clk 01:28:20]} {[%emt 00:01:53]} a5 {[%clk 01:20:52]} {[%emt 00:03:12]} 10.
Nd4 {[%clk 01:21:13]} {[%emt 00:07:35]} Bd7 {[%clk 01:15:31]} {[%emt 00:05:54]}
11. Nf3 {[%clk 01:10:07]} {[%emt 00:11:35]} c6 {[%clk 01:10:23]} {[%emt
00:05:39]} 12. Bg5 {[%clk 01:05:38]} {[%emt 00:04:58]} f6 {[%clk 01:03:48]}
{[%emt 00:07:06]} 13. Bf4 {[%clk 01:04:21]} {[%emt 00:01:44]} b5 {[%clk
01:02:02]} {[%emt 00:02:18]} 14. Re1 {[%clk 01:03:44]} {[%emt 00:01:06]} O-O
{[%clk 00:59:50]} {[%emt 00:02:43]} 15. Bd3 {[%clk 00:57:24]} {[%emt 00:06:50]}
Kh8 {[%clk 00:56:46]} {[%emt 00:03:35]} 16. Nd4 {[%clk 00:51:59]} {[%emt
00:05:54]} Na6 {[%clk 00:53:31]} {[%emt 00:03:46]} 17. Bf5 {[%clk 00:46:56]}
{[%emt 00:05:32]} Bc5 {[%clk 00:48:23]} {[%emt 00:05:39]} 18. Ne6 {[%clk
00:38:08]} {[%emt 00:09:18]} Qc8 {[%clk 00:41:27]} {[%emt 00:07:27]} 19. Nxc5
{[%clk 00:31:12]} {[%emt 00:07:25]} Bxf5 {[%clk 00:39:05]} {[%emt 00:02:52]} 20.
Nxa6 {[%clk 00:29:55]} {[%emt 00:01:47]} Rxa6 {[%clk 00:37:54]} {[%emt
00:01:42]} 21. Bd6 {[%clk 00:29:21]} {[%emt 00:01:02]} Re8 {[%clk 00:35:46]}
{[%emt 00:02:39]} 22. Rxe8+ {[%clk 00:28:33]} {[%emt 00:01:15]} Qxe8 {[%clk
00:36:08]} {[%emt 00:00:11]} 23. Re1 {[%clk 00:28:17]} {[%emt 00:00:45]} Qg6
{[%clk 00:34:39]} {[%emt 00:02:01]} 24. f3 {[%clk 00:23:39]} {[%emt 00:05:08]}
Ra8 {[%clk 00:32:44]} {[%emt 00:02:26]} 25. Qe2 {[%clk 00:23:36]} {[%emt
00:00:29]} h6 {[%clk 00:32:15]} {[%emt 00:01:03]} 26. g4 {[%clk 00:23:24]}
{[%emt 00:00:41]} Bd7 {[%clk 00:31:53]} {[%emt 00:00:53]} 27. Qf2 {[%clk
00:22:03]} {[%emt 00:01:46]} f5 {[%clk 00:31:22]} {[%emt 00:01:05]} 28. Bc5
{[%clk 00:16:30]} {[%emt 00:06:02]} fxg4 {[%clk 00:31:04]} {[%emt 00:00:49]} 29.
fxg4 {[%clk 00:15:56]} {[%emt 00:01:04]} Bxg4 {[%clk 00:30:33]} {[%emt
00:01:00]} 30. Rg1 {[%clk 00:15:10]} {[%emt 00:01:13]} Qg5+ {[%clk 00:23:43]}
{[%emt 00:07:23]} 31. Kb1 {[%clk 00:11:09]} {[%emt 00:04:29]} Re8 {[%clk
00:21:46]} {[%emt 00:02:29]} 32. h3 {[%clk 00:09:00]} {[%emt 00:02:38]} Qf5
{[%clk 00:21:02]} {[%emt 00:01:14]} 1-0

[Event "Swedish Chess Championship 2019: Minior-SM"]
[Site "Stiga Sports Arena, Arenatorget 1, Eskilstuna, Sweden, Sweden"]
[Date "2019.07.08"]
[Round "1.5"]
[White "Harlin, Jacob"]
[Black "Tran, Alva Ling"]
[Result "0-1"]
[TimeControl "90 minutes for 40 moves + 30 minutes for the rest of the game + 30 seconds per move from move one"]
[WhiteFideId "1728180"]
[BlackFideId "1753223"]
[WhiteElo "1273"]
[BlackElo "1712"]

1. e4 {[%clk 01:30:58]} {[%emt 00:00:02]} c5 {[%clk 01:30:50]} {[%emt
00:00:11]} 2. c3 {[%clk 01:31:21]} {[%emt 00:00:06]} d5 {[%clk 01:30:45]}
{[%emt 00:00:35]} 3. exd5 {[%clk 01:31:46]} {[%emt 00:00:06]} Qxd5 {[%clk
01:31:06]} {[%emt 00:00:09]} 4. d4 {[%clk 01:32:06]} {[%emt 00:00:10]} cxd4
{[%clk 01:30:59]} {[%emt 00:00:38]} 5. cxd4 {[%clk 01:32:30]} {[%emt 00:00:06]}
Nc6 {[%clk 01:30:59]} {[%emt 00:00:31]} 6. Nf3 {[%clk 01:32:46]} {[%emt
00:00:13]} Bg4 {[%clk 01:29:17]} {[%emt 00:02:12]} 7. Be2 {[%clk 01:33:06]}
{[%emt 00:00:10]} e6 {[%clk 01:27:48]} {[%emt 00:02:00]} 8. a3 {[%clk
01:32:11]} {[%emt 00:01:25]} Nf6 {[%clk 01:22:53]} {[%emt 00:05:25]} 9. Nc3
{[%clk 01:29:37]} {[%emt 00:03:03]} Qd7 {[%clk 01:20:49]} {[%emt 00:02:35]} 10.
Be3 {[%clk 01:20:38]} {[%emt 00:09:30]} Bd6 {[%clk 01:13:36]} {[%emt 00:07:43]}
11. h3 {[%clk 01:18:30]} {[%emt 00:02:37]} Bh5 {[%clk 01:08:32]} {[%emt
00:05:34]} 12. Qd2 {[%clk 01:17:24]} {[%emt 00:01:37]} O-O {[%clk 01:06:20]}
{[%emt 00:02:42]} 13. O-O {[%clk 01:13:13]} {[%emt 00:04:40]} Rfd8 {[%clk
01:04:21]} {[%emt 00:02:28]} 14. Rfd1 {[%clk 01:12:39]} {[%emt 00:01:05]} Rac8
{[%clk 01:01:37]} {[%emt 00:03:14]} 15. Rac1 {[%clk 01:04:34]} {[%emt
00:08:36]} Bb8 {[%clk 00:44:00]} {[%emt 00:18:07]} 16. Qc2 {[%clk 00:45:50]}
{[%emt 00:19:13]} Bg6 {[%clk 00:36:43]} {[%emt 00:07:47]} 17. Bd3 {[%clk
00:45:08]} {[%emt 00:01:12]} Bxd3 {[%clk 00:36:07]} {[%emt 00:01:06]} 18. Rxd3
{[%clk 00:42:45]} {[%emt 00:02:53]} Na5 {[%clk 00:32:01]} {[%emt 00:04:36]} 19.
Rcd1 {[%clk 00:35:12]} {[%emt 00:08:03]} Nd5 {[%clk 00:26:19]} {[%emt
00:06:12]} 20. Ne5 {[%clk 00:30:32]} {[%emt 00:05:10]} Qc7 {[%clk 00:26:31]}
{[%emt 00:00:18]} 21. Qa4 {[%clk 00:27:11]} {[%emt 00:03:51]} Nc4 {[%clk
00:21:26]} {[%emt 00:05:35]} 22. Nxc4 {[%clk 00:23:58]} {[%emt 00:03:43]} Qxc4
{[%clk 00:21:29]} {[%emt 00:00:26]} 23. Qxc4 {[%clk 00:20:40]} {[%emt
00:03:48]} Rxc4 {[%clk 00:21:26]} {[%emt 00:00:34]} 24. Nxd5 {[%clk 00:20:40]}
{[%emt 00:00:29]} Rxd5 {[%clk 00:19:04]} {[%emt 00:02:52]} 25. Rc3 {[%clk
00:19:41]} {[%emt 00:01:28]} Rxc3 {[%clk 00:18:51]} {[%emt 00:00:44]} 26. bxc3
{[%clk 00:20:06]} {[%emt 00:00:05]} Ra5 {[%clk 00:18:00]} {[%emt 00:01:20]} 27.
Ra1 {[%clk 00:17:48]} {[%emt 00:02:48]} Bd6 {[%clk 00:15:14]} {[%emt 00:03:16]}
28. a4 {[%clk 00:18:09]} {[%emt 00:00:09]} b5 {[%clk 00:12:56]} {[%emt
00:02:47]} 29. Kf1 {[%clk 00:15:27]} {[%emt 00:03:12]} Rxa4 {[%clk 00:09:01]}
{[%emt 00:04:26]} 30. Rxa4 {[%clk 00:15:05]} {[%emt 00:00:52]} bxa4 {[%clk
00:09:26]} {[%emt 00:00:05]} 31. Ke2 {[%clk 00:15:24]} {[%emt 00:00:11]} a3
{[%clk 00:07:13]} {[%emt 00:02:43]} 32. Bc1 {[%clk 00:15:49]} {[%emt 00:00:05]}
a2 {[%clk 00:06:55]} {[%emt 00:00:47]} 33. Bb2 {[%clk 00:16:15]} {[%emt
00:00:04]} Ba3 {[%clk 00:05:30]} {[%emt 00:01:55]} 34. Ba1 {[%clk 00:16:40]}
{[%emt 00:00:05]} Kf8 {[%clk 00:05:19]} {[%emt 00:00:42]} 35. Kd3 {[%clk
00:15:51]} {[%emt 00:01:18]} Ke7 {[%clk 00:05:08]} {[%emt 00:00:41]} 36. Kc4
{[%clk 00:16:02]} {[%emt 00:00:19]} Kd6 {[%clk 00:04:41]} {[%emt 00:00:58]} 37.
Kb3 {[%clk 00:15:58]} {[%emt 00:00:34]} Bc1 {[%clk 00:04:53]} {[%emt 00:00:18]}
38. c4 {[%clk 00:15:44]} {[%emt 00:00:44]} Bf4 {[%clk 00:02:23]} {[%emt
00:02:59]} 39. g3 {[%clk 00:15:16]} {[%emt 00:00:57]} Bd2 {[%clk 00:02:21]}
{[%emt 00:00:32]} 40. Kxa2 {[%clk 00:15:21]} {[%emt 00:00:26]} Be1 {[%clk
00:02:06]} {[%emt 00:00:44]} 41. f3 {[%clk 00:14:17]} {[%emt 00:01:35]} Bxg3
{[%clk 00:02:10]} {[%emt 00:00:26]} 42. Kb3 {[%clk 00:14:37]} {[%emt 00:00:10]}
Kc6 {[%clk 00:29:23]} {[%emt 00:03:46]} 43. Ka4 {[%clk 00:43:47]} {[%emt
00:01:20]} Be1 {[%clk 00:28:25]} {[%emt 00:01:27]} 44. Bb2 {[%clk 00:42:07]}
{[%emt 00:02:10]} f5 {[%clk 00:27:30]} {[%emt 00:01:25]} 45. Ba3 {[%clk
00:42:05]} {[%emt 00:00:33]} Bc3 {[%clk 00:26:54]} {[%emt 00:01:06]} 46. Bc5
{[%clk 00:41:07]} {[%emt 00:01:27]} e5 {[%clk 00:26:16]} {[%emt 00:01:09]} 47.
Bxa7 {[%clk 00:40:30]} {[%emt 00:01:07]} Bxd4 {[%clk 00:26:09]} {[%emt
00:00:37]} 48. Bb8 {[%clk 00:34:42]} {[%emt 00:06:18]} g5 {[%clk 00:19:22]}
{[%emt 00:07:16]} 49. Kb3 {[%clk 00:34:19]} {[%emt 00:00:54]} h5 {[%clk
00:19:04]} {[%emt 00:00:48]} 50. Kc2 {[%clk 00:28:19]} {[%emt 00:06:30]} g4
{[%clk 00:17:20]} {[%emt 00:02:14]} 51. hxg4 {[%clk 00:24:06]} {[%emt
00:04:43]} hxg4 {[%clk 00:17:04]} {[%emt 00:00:45]} 52. fxg4 {[%clk 00:21:28]}
{[%emt 00:03:08]} fxg4 {[%clk 00:17:27]} {[%emt 00:00:07]} 53. Kd2 {[%clk
00:21:50]} {[%emt 00:00:09]} g3 {[%clk 00:17:45]} {[%emt 00:00:12]} 54. Bxe5
{[%clk 00:22:10]} {[%emt 00:00:10]} Bxe5 {[%clk 00:18:02]} {[%emt 00:00:13]} 55.
Ke2 {[%clk 00:22:23]} {[%emt 00:00:17]} Kc5 {[%clk 00:18:22]} {[%emt 00:00:10]}
56. Kf3 {[%clk 00:22:44]} {[%emt 00:00:09]} Kxc4 {[%clk 00:18:35]} {[%emt
00:00:17]} 57. Ke3 {[%clk 00:22:25]} {[%emt 00:00:49]} Kc3 {[%clk 00:18:42]}
{[%emt 00:00:22]} 58. Ke2 {[%clk 00:22:38]} {[%emt 00:00:17]} Kd4 {[%clk
00:18:54]} {[%emt 00:00:17]} 59. Kf3 {[%clk 00:22:54]} {[%emt 00:00:14]} Kd3
{[%clk 00:19:16]} {[%emt 00:00:08]} 0-1